Workbook

Sheet EarlyExit (hidden)
D2: 4- LEGGED EARLY EXIT- 13 INTERSECTION FORMS: SORTED BY AADT CROSS PRODUCT AND TYPE- 76 OPTIONS | U2: Methodology: Using the HCM expanded planning tool including conventional and alternative intersections
U3: 1. Set default values for K,D, %Turns,PHF,%HV and C-- remained fixed throughout
D4: Fixed: | E4: PHF=0.95 | F4: %RT=%LT=10% | G4: 0.1 | H4: D= | I4: 0.5 | J4: D=0.5 | K4: %HV=5% | L4: K=0.1 | U4: 2. Selected AADT ratio and appropriate lane configuration (1:1, 2:1, 3:2, etc…)
D5: Single LT Lane ON all approaches | I5: Shared T+R ON all approaches | J5: Shared T+R Lanes | M5: Cycle Length= | N5: C= 150 SEC | U5: 3. In my spreadsheet I Increased major street AADT until any lane group for the intersection form gets to v/c =1.1
D6: Number of through lanes proportional to AADT ratio when possible | M6: Green times optimized | N6: Greens Optimized | U6: 4. Recorded the perlane AADT for both roads and generate SUM ADTs and their Cross Product (CP) in the table on the left
E7: FAILURE AT X = 1.10 | G7: CROSS | K7: Major Rd | L7: Minor Rd | M7: OVERALL | N7: Rounded | O7: AADT | U7: 5. For application: Enter major and minor AADT for the subject intersection in the block below
D8: AADT | E8: Major AADT @ Failure | F8: Minor AADT @Failure | G8: PRODUCT (in 10^6) | H8: Sum | I8: PERCENT | J8: # Thru Lanes | K8: AADT at Failure | L8: AADT at Failure | M8: SUM INTERSECTION | N8: SUM-AADT @Failure | O8: CROSS PRODUCT AT FAILURE | U8: 6. Table dynamically highlights types and designs meeting CP-Min**
D9: RATIO | E9: PER LANE | F9: PER LANE | G9: AT FAILURE | H9: AADT/LANE | I9: LEFT TURNS | J9: Major x Minor | M9: AADT @Failure | O9: in Millions | U9: **CP Min includes a 30% conflation of actual CP to account for default values assumptions
D10: D | E10: E | F10: F | H10: H | I10: I | J10: J | K10: K | L10: L | M10: M | N10: N | O10: O
C11: SIGNAL | D11: 1:1 | E11: 7935 | F11: 7935 | G11: =E11*F11/10^6 -> 62.964225 | H11: =E11+F11 -> 15870 | I11: 10 | J11: 1X1 | K11: =E11*2 -> 15870 | L11: =F11*2 -> 15870 | M11: =K11+L11 -> 31740 | N11: =ROUND(M11/1000,0)*1000 -> 32000 | O11: =K11*L11/10^6 -> 251.8569 | S11: =IF(O11<$W$17,0,IF(O11>$W$18,0,1)) -> 0 | U11: INPUT SITE AND AADT FOR MAJOR AND MINOR RD. | AB11: Verification with Coventional Signal 1x 1,AADT Ratio 1:1
D12: 2:1 | E12: 7905 | F12: 7905 | G12: 62.489025 | H12: 15810 | I12: 10 | J12: 2X1 | K12: =E12*4 -> 31620 | L12: =F12*2 -> 15810 | M12: =K12+L12 -> 47430 | N12: 47000 | O12: 499.9122 | S12: =IF(O12<$W$17,0,IF(O12>$W$18,0,1)) -> 0 | U12: Glenwood and Milbrook (2021) | AB12: Max AADT that causes a lane group v/c to ~ 1.1
D13: 3:1 | E13: 7500 | F13: 7500 | G13: 56.25 | H13: 15000 | I13: 10 | J13: 3X1 | K13: =E13*6 -> 45000 | L13: =F13*2 -> 15000 | M13: =E13*8 -> 60000 | N13: 60000 | O13: 675 | S13: 0 | U13: Major AADT | V13: 40000 | W13: Minor AADT | X13: 15000 | AB13: Start with SUM AADT = 32000
C14: Mean/Lane | D14: 1:1 | E14: 6900 | F14: 6900 | G14: 47.61 | H14: 13800 | I14: 10 | J14: 2X2 | K14: =E14*4 -> 27600 | L14: =F14*4 -> 27600 | M14: =E14*8 -> 55200 | N14: 55000 | O14: 761.76 | S14: 0 | U14: Sum AADT= | W14: =V13+X13 -> 55000 | AB14: Per street per day= 16,000
D15: 4:1 | E15: 7188 | F15: 7188 | G15: 51.667344 | H15: 14376 | I15: 10 | J15: 4X1 | K15: =E15*8 -> 57504 | L15: =F15*2 -> 14376 | M15: =E15*10 -> 71880 | N15: 72000 | O15: 826.677504 | S15: 1 | U15: AADT Ratio= | W15: =V13/X13 -> 2.666666667 | X15: to 1 | AB15: Per direction in street per day = 16000x 0.5=8000
C16: =AVERAGE(E11:F18) -> 7041.875 | D16: 3:2 | E16: 6515 | F16: 6515 | G16: =E16*F16/10^6 -> 42.445225 | H16: =E16+F16 -> 13030 | I16: 10 | J16: 3x2 | K16: =E16*6 -> 39090 | L16: =F16*4 -> 26060 | M16: =E16*10 -> 65150 | N16: =ROUND(M16/1000,0)*1000 -> 65000 | O16: =K16*L16/10^6 -> 1018.6854 | S16: 1 | U16: Actual AADT Cross Product= | W16: =V13*X13/10^6 -> 600 | X16: million | AB16: Per peak hour per direction (TPC) = 8,000x0.1x1.05=840
C17: Stdev | D17: 2:1 | E17: 6250 | F17: 6250 | G17: =E17*F17/10^6 -> 39.0625 | H17: =E17+F17 -> 12500 | I17: =I14 -> 10 | J17: 4x2 | K17: =E17*8 -> 50000 | L17: =F17*4 -> 25000 | M17: =E17*12 -> 75000 | N17: =ROUND(M17/1000,0)*1000 -> 75000 | O17: =K17*L17/10^6 -> 1250 | S17: 0 | U17: CP-Min= | W17: =1.3* V13*X13/10^6 -> 780 | AB17: Per peak period one direction = 840/0.95= 885
C18: =STDEV(E11:F18) -> 683.9546647 | D18: 1:1 | E18: 6142 | F18: 6142 | G18: =E18*F18/10^6 -> 37.724164 | H18: =E18+F18 -> 12284 | I18: ='[2]GLOBAL INPUTS'!F58 -> 10 | J18: 3x3 | K18: =E18*6 -> 36852 | L18: =F18*6 -> 36852 | M18: =E18*12 -> 73704 | N18: =ROUND(M18/1000,0)*1000 -> 74000 | O18: =K18*L18/10^6 -> 1358.069904 | S18: 0 | U18: CP-Max= | W18: =1.8*W16 -> 1080 | X18: E. Exits | AB18: Intersection Critical lane volume =885x2=1770
S19: 0
S20: 0 | U20: Approximate X= 1,680/1600=1.07 | AB20: Approximate x= 1770/1650~ 1.08
S21: 0
C22: TWSC | D22: 1:1 | E22: 6200 | F22: 6200 | G22: =E22*F22/10^6 -> 38.44 | H22: =E22+F22 -> 12400 | I22: =I11 -> 10 | J22: 1x1 | K22: =E22*2 -> 12400 | L22: =F22*2 -> 12400 | M22: =K22+L22 -> 24800 | N22: =ROUND(M22/1000,0)*1000 -> 25000 | O22: =K22*L22/10^6 -> 153.76 | S22: 0 | U22: # Carry Over Alternatives= | W22: =SUM(S11:S97) -> 14 | X22: =(76-W22)/76 -> 0.8157894737
C23: Mean/Lane | D23: 2:1 | E23: 4437 | F23: 4437 | G23: 19.686969 | H23: =E23+F23 -> 8874 | I23: 10 | J23: 2x1 | K23: =E23*4 -> 17748 | L23: =E23*2 -> 8874 | M23: =K23+L23 -> 26622 | N23: =ROUND(M23/1000,0)*1000 -> 27000 | O23: =K23*L23/10^6 -> 157.495752 | S23: 0
C24: =AVERAGE(E22:F26) -> 4136.4 | D24: 3:1 | E24: 3633 | F24: 3633 | G24: 13.198689 | H24: =E24+F24 -> 7266 | I24: 10 | J24: 3x1 | K24: =E24*6 -> 21798 | L24: =F24*2 -> 7266 | M24: =K24+L24 -> 29064 | N24: =ROUND(M24/1000,0)*1000 -> 29000 | O24: =K24*L24/10^6 -> 158.384268 | S24: 0
C25: Stdev | D25: 1:1 | E25: 3437 | F25: 3437 | G25: 11.812969 | H25: =E25+F25 -> 6874 | I25: 10 | J25: 2x2 | K25: =E25*4 -> 13748 | L25: =F25*4 -> 13748 | M25: =K25+L25 -> 27496 | N25: =ROUND(M25/1000,0)*1000 -> 27000 | O25: =K25*L25/10^6 -> 189.007504 | S25: 0
C26: =STDEV(E22:F26) -> 1196.311665 | D26: 3:2 | E26: 2975 | F26: 2975 | G26: 8.850625 | H26: =E26+F26 -> 5950 | I26: =I17 -> 10 | J26: 3x2 | K26: =E26*6 -> 17850 | L26: =F26*4 -> 11900 | M26: =K26+L26 -> 29750 | N26: =ROUND(M26/1000,0)*1000 -> 30000 | O26: =K26*L26/10^6 -> 212.415 | S26: 0
C27: SLROUND | D27: 2:1 | E27: 8250 | F27: =E27/2 -> 4125 | G27: 34.03125 | H27: =E27+F27 -> 12375 | I27: =I23 -> 10 | J27: 1x1 | K27: =E27*2 -> 16500 | L27: =F27*2 -> 8250 | M27: =K27+L27 -> 24750 | N27: =ROUND(M27/1000,0)*1000 -> 25000 | O27: =K27*L27/10^6 -> 136.125 | S27: 0
C28: =AVERAGE(E27:F28) -> 6368.75 | D28: 1:1 | E28: 6550 | F28: 6550 | G28: 42.9025 | H28: 13100 | I28: =I23 -> 10 | J28: 1x1 | K28: =E28*2 -> 13100 | L28: =F28*2 -> 13100 | M28: 26200 | N28: 26000 | O28: 171.61 | S28: 0
C29: MLROUND | D29: 2:1 | E29: 5390 | F29: 5390 | G29: 29.0521 | H29: 10780 | I29: =I25 -> 10 | J29: 2x1 | K29: =E29*4 -> 21560 | L29: =F29*2 -> 10780 | M29: 32340 | N29: 32000 | O29: 232.4168 | S29: 0
C30: =AVERAGE(E29:F30) -> 5239 | D30: 1:1 | E30: 5088 | F30: 5088 | G30: 25.887744 | H30: 10176 | I30: =I25 -> 10 | J30: 2x2 | K30: =E30*4 -> 20352 | L30: =F30*4 -> 20352 | M30: 40704 | N30: 41000 | O30: 414.203904 | S30: 0
C31: AWSC | D31: 2:1 | E31: 4250 | F31: =E31/2 -> 2125 | G31: 9.03125 | H31: 6375 | I31: =I28 -> 10 | J31: 1X1 | K31: =E31*2 -> 8500 | L31: =F31*2 -> 4250 | M31: 12750 | N31: 13000 | O31: 36.125 | S31: 0
C32: =AVERAGE(E31:F32) -> 3356.25 | D32: 1:1 | E32: 3525 | F32: 3525 | G32: 12.425625 | H32: 7050 | I32: =I28 -> 10 | J32: 1X1 | K32: =E32*2 -> 7050 | L32: =F32*2 -> 7050 | M32: 14100 | N32: 14000 | O32: 49.7025 | S32: 0
S33: 0
C34: RCUT | D34: 2:1 | E34: 6250 | F34: 6250 | G34: =E34*F34/10^6 -> 39.0625 | H34: =E34+F34 -> 12500 | I34: =I30 -> 10 | J34: 2X1 | K34: =E34*4 -> 25000 | L34: =F34*2 -> 12500 | M34: =K34+L34 -> 37500 | N34: =ROUND(M34/1000,0)*1000 -> 38000 | O34: =K34*L34/10^6 -> 312.5 | S34: 0
C35: Mean/Lane | D35: 3:1 | E35: 6535 | F35: 6535 | G35: 42.706225 | H35: 13070 | I35: =I30 -> 10 | J35: 3X1 | K35: =E35*6 -> 39210 | L35: =F35*2 -> 13070 | M35: 52280 | N35: 52000 | O35: 512.4747 | S35: 0
C36: =AVERAGE(E34:F41) -> 6477.125 | D36: 3:2 | E36: 5667 | F36: 5667 | G36: 32.114889 | H36: 11334 | I36: =I38 -> 10 | J36: 3x2 | K36: =E36*6 -> 34002 | L36: =F36*4 -> 22668 | M36: 56670 | N36: 57000 | O36: 770.757336 | S36: 0
C37: Stdev | D37: 4:1 | E37: 7100 | F37: 7100 | G37: 50.41 | H37: 14200 | I37: 10 | J37: 4x1 | K37: =E37*8 -> 56800 | L37: =F37*2 -> 14200 | M37: 71000 | N37: 71000 | O37: 806.56 | S37: 1
C38: =STDEV(E34:F41) -> 950.4141466 | D38: 1:1 | E38: 4800 | F38: 4800 | G38: 23.04 | H38: 9600 | I38: =I35 -> 10 | J38: 3X3 | K38: =E38*6 -> 28800 | L38: =F38*6 -> 28800 | M38: 57600 | N38: 58000 | O38: 829.44 | S38: 1 | U38: Currently Signalized 3x 1,3x2
D39: 1:1 | E39: 7965 | F39: 7965 | G39: 63.441225 | H39: 15930 | I39: 10 | J39: 2X2 | K39: =E39*4 -> 31860 | L39: =F39*4 -> 31860 | M39: 63720 | N39: 64000 | O39: 1015.0596 | S39: 1
D40: 5:1 | E40: 7250 | F40: 7250 | G40: 52.5625 | H40: 14500 | I40: =I33 -> 0 | J40: 5X1 | K40: =E40*10 -> 72500 | L40: =F40*2 -> 14500 | M40: 87000 | N40: 87000 | O40: 1051.25 | S40: 1
D41: 2:1 | E41: 6250 | F41: 6250 | G41: 39.0625 | H41: 12500 | I41: =I36 -> 10 | J41: 4X2 | K41: =E41*8 -> 50000 | L41: =F41*4 -> 25000 | M41: 75000 | N41: 75000 | O41: 1250 | S41: 0
S42: 0
C43: MUT | D43: 2:1 | E43: 7540 | F43: 7540 | G43: =E43*F43/10^6 -> 56.8516 | H43: =E43+F43 -> 15080 | I43: =I37 -> 10 | J43: 2X1 | K43: =E43*4 -> 30160 | L43: =F43*2 -> 15080 | M43: =K43+L43 -> 45240 | N43: =ROUND(M43/1000,0)*1000 -> 45000 | O43: =K43*L43/10^6 -> 454.8128 | S43: 0
C44: Mean/Lane | D44: 3:1 | E44: 7430 | F44: 7430 | G44: 55.2049 | H44: 14860 | I44: =I38 -> 10 | J44: 3X1 | K44: =E44*6 -> 44580 | L44: =F44*2 -> 14860 | M44: 59440 | N44: 59000 | O44: 662.4588 | S44: 0
D45: 4:1 | E45: 7875 | F45: 7875 | G45: 62.015625 | H45: 15750 | I45: 10 | J45: 4x1 | K45: =E45*8 -> 63000 | L45: =F45*2 -> 15750 | M45: 78750 | N45: 79000 | O45: 992.25 | S45: 1
C46: =AVERAGE(E43:F49) -> 7332.857143 | D46: 1:1 | E46: 5800 | F46: 5800 | G46: 33.64 | H46: 11600 | I46: =I42 -> 0 | J46: 3X3 | K46: =E46*6 -> 34800 | L46: =F46*6 -> 34800 | M46: 69600 | N46: 70000 | O46: 1211.04 | S46: 0
C47: Stdev | D47: 3:2 | E47: 7185 | F47: 7185 | G47: 51.624225 | H47: 14370 | I47: 10 | J47: 3x2 | K47: =E47*6 -> 43110 | L47: =F47*4 -> 28740 | M47: 71850 | N47: 72000 | O47: 1238.9814 | S47: 0
C48: =STDEV(E43:F49) -> 691.7973088 | D48: 5:1 | E48: 7900 | F48: 7900 | G48: 62.41 | H48: 15800 | I48: =I39 -> 10 | J48: 5X1 | K48: =E48*10 -> 79000 | L48: =F48*2 -> 15800 | M48: 94800 | N48: 95000 | O48: 1248.2 | S48: 0
D49: 2:1 | E49: 7600 | F49: 7600 | G49: 57.76 | H49: 15200 | I49: =I45 -> 10 | J49: 4X2 | K49: =E49*8 -> 60800 | L49: =F49*4 -> 30400 | M49: 91200 | N49: 91000 | O49: 1848.32 | S49: 0
S50: 0
C51: PMUT | D51: 2:1 | E51: 6850 | F51: 6850 | G51: =E51*F51/10^6 -> 46.9225 | H51: =E51+F51 -> 13700 | I51: =I46 -> 0 | J51: 2X1 | K51: =E51*4 -> 27400 | L51: =F51*2 -> 13700 | M51: =K51+L51 -> 41100 | N51: =ROUND(M51/1000,0)*1000 -> 41000 | O51: =K51*L51/10^6 -> 375.38 | S51: 0
D52: 1:1 | E52: 7000 | F52: 7000 | G52: =E52*F52/10^6 -> 49 | H52: 14000 | I52: =I48 -> 10 | J52: 1x1 | K52: =E52*4 -> 28000 | L52: =F52*2 -> 14000 | M52: 42000 | N52: 42000 | O52: 392 | S52: 0
C53: Mean/Lane | D53: 1:1 | E53: 5200 | F53: 5200 | H53: 10400 | I53: 10 | J53: 2x2 | K53: =E53*4 -> 20800 | L53: =F53*4 -> 20800 | M53: 41600 | N53: 42000 | O53: 432.64 | S53: 0
D54: 3:1 | E54: 6685 | F54: 6685 | G54: =E54*F54/10^6 -> 44.689225 | H54: 13370 | I54: 10 | J54: 3X1 | K54: =E54*6 -> 40110 | L54: =F54*2 -> 13370 | M54: 53480 | N54: 53000 | O54: 536.2707 | S54: 0
C55: =AVERAGE(E51:F57) -> 6167.571429 | D55: 3:2 | E55: 5133 | F55: 5133 | G55: =E55*F55/10^6 -> 26.347689 | H55: =E55+F55 -> 10266 | I55: 10 | J55: 3x2 | K55: =E55*6 -> 30798 | L55: =F55*4 -> 20532 | M55: =K55+L55 -> 51330 | N55: =ROUND(M55/1000,0)*1000 -> 51000 | O55: =K55*L55/10^6 -> 632.344536 | S55: 0
C56: Stdev | D56: 4:1 | E56: 7015 | F56: 7015 | G56: =E56*F56/10^6 -> 49.210225 | H56: =E56+F56 -> 14030 | I56: 10 | J56: 4X1 | K56: =E56*7 -> 49105 | L56: =F56*2 -> 14030 | M56: =K56+L56 -> 63135 | N56: =ROUND(M56/1000,0)*1000 -> 63000 | O56: =K56*L56/10^6 -> 688.94315 | S56: 0
C57: =STDEV(E51:F57) -> 870.117385 | D57: 2:1 | E57: 5290 | F57: 5290 | G57: =E57*F57/10^6 -> 27.9841 | H57: =E57+F57 -> 10580 | I57: =I52 -> 10 | J57: 4X2 | K57: =E57*8 -> 42320 | L57: =F57*4 -> 21160 | M57: =K57+L57 -> 63480 | N57: =ROUND(M57/1000,0)*1000 -> 63000 | O57: =K57*L57/10^6 -> 895.4912 | S57: 1
S58: 0
C59: CFI/DLT | D59: 1:1 | E59: 8000 | F59: 8000 | G59: =E59*F59/10^6 -> 64 | H59: =E59+F59 -> 16000 | I59: =I56 -> 10 | J59: 1x1 | K59: =E59*2 -> 16000 | L59: =F59*2 -> 16000 | M59: =K59+L59 -> 32000 | N59: =ROUND(M59/1000,0)*1000 -> 32000 | O59: =K59*L59/10^6 -> 256 | S59: 0
D60: 2:1 | E60: 7915 | F60: 7915 | G60: 62.647225 | H60: 15830 | I60: =I56 -> 10 | J60: 2X1 | K60: =E60*4 -> 31660 | L60: =F60*2 -> 15830 | M60: 47490 | N60: 47000 | O60: 501.1778 | S60: 0
C61: Mean/Lane | D61: 3:1 | E61: 7750 | F61: 7750 | G61: 60.0625 | H61: 15500 | I61: =I57 -> 10 | J61: 3X1 | K61: =E61*6 -> 46500 | L61: =F61*2 -> 15500 | M61: 62000 | N61: 62000 | O61: 720.75 | S61: 0
D62: 1:1 | E62: 7375 | F62: 7375 | G62: 54.390625 | H62: 14750 | I62: 10 | J62: 2x2 | K62: =E62*4 -> 29500 | L62: =F62*4 -> 29500 | M62: 59000 | N62: 59000 | O62: 870.25 | S62: 1
C63: =AVERAGE(E59:F65) -> 7671.428571 | D63: 4:1 | E63: 8040 | F63: 8040 | G63: 64.6416 | H63: 16080 | I63: 10 | J63: 4X1 | K63: =E63*8 -> 64320 | L63: =F63*2 -> 16080 | M63: 80400 | N63: 80000 | O63: 1034.2656 | S63: 1
C64: Stdev | D64: 3:2 | E64: 7245 | F64: 7245 | G64: 52.490025 | H64: 14490 | I64: 10 | J64: 3x2 | K64: =E64*6 -> 43470 | L64: =F64*4 -> 28980 | M64: 72450 | N64: 72000 | O64: 1259.7606 | S64: 0
C65: =STDEV(E59:F65) -> 320.3089168 | D65: 2:1 | E65: 7375 | F65: 7375 | G65: 54.390625 | H65: 14750 | I65: =I61 -> 10 | J65: 4X2 | K65: =E65*8 -> 59000 | L65: =F65*4 -> 29500 | M65: 88500 | N65: 89000 | O65: 1740.5 | S65: 0
S66: 0
C67: QRI- NE | D67: 1:1 | E67: 8200 | F67: 8200 | G67: =E67*F67/10^6 -> 67.24 | H67: =E67+F67 -> 16400 | I67: =I63 -> 10 | J67: 1x1 | K67: =E67*2 -> 16400 | L67: =F67*2 -> 16400 | M67: =K67+L67 -> 32800 | N67: =ROUND(M67/1000,0)*1000 -> 33000 | O67: =K67*L67/10^6 -> 268.96 | S67: 0
D68: 2:1 | E68: 8225 | F68: 8225 | G68: 67.650625 | H68: 16450 | I68: =I63 -> 10 | J68: 2X1 | K68: =E68*4 -> 32900 | L68: =F68*2 -> 16450 | M68: 49350 | N68: 49000 | O68: 541.205 | S68: 0
C69: Mean/Lane | D69: 3:1 | E69: 8235 | F69: 8235 | G69: 67.815225 | H69: 16470 | I69: =I64 -> 10 | J69: 3X1 | K69: =E69*6 -> 49410 | L69: =F69*2 -> 16470 | M69: 65880 | N69: 66000 | O69: 813.7827 | S69: 1
D70: 4:1 | E70: 7530 | F70: 7530 | G70: =E70*F70/10^6 -> 56.7009 | H70: =E70+F70 -> 15060 | I70: 10 | J70: 4X1 | K70: =E70*8 -> 60240 | L70: =F70*2 -> 15060 | M70: =K70+L70 -> 75300 | N70: =ROUND(M70/1000,0)*1000 -> 75000 | O70: =K70*L70/10^6 -> 907.2144 | S70: 1
C71: =AVERAGE(E67:F73) -> 7979.714286 | D71: 1:1 | E71: 8250 | F71: 8250 | G71: =E71*F71/10^6 -> 68.0625 | H71: =E71+F71 -> 16500 | I71: 10 | J71: 2x2 | K71: =E71*4 -> 33000 | L71: =F71*4 -> 33000 | M71: =K71+L71 -> 66000 | N71: =ROUND(M71/1000,0)*1000 -> 66000 | O71: =K71*L71/10^6 -> 1089 | S71: 0
C72: Stdev | D72: 3:2 | E72: 8233 | F72: 8233 | G72: =E72*F72/10^6 -> 67.782289 | H72: =E72+F72 -> 16466 | I72: 10 | J72: 3x2 | K72: =E72*6 -> 49398 | L72: =F72*4 -> 32932 | M72: =K72+L72 -> 82330 | N72: =ROUND(M72/1000,0)*1000 -> 82000 | O72: =K72*L72/10^6 -> 1626.774936 | S72: 0
C73: =STDEV(E67:F73) -> 419.6854919 | D73: 2:1 | E73: 7185 | F73: 7185 | G73: 51.624225 | H73: 14370 | I73: =I69 -> 10 | J73: 4X2 | K73: =E73*8 -> 57480 | L73: =F73*4 -> 28740 | M73: 86220 | N73: 86000 | O73: 1651.9752 | S73: 0
S74: 0
C75: Bowtie | D75: 1:1 | E75: 7600 | F75: 7600 | G75: =E75*F75/10^6 -> 57.76 | H75: =E75+F75 -> 15200 | I75: =I69 -> 10 | J75: 1x1 | K75: =E75*2 -> 15200 | L75: =F75*2 -> 15200 | M75: =K75+L75 -> 30400 | N75: =ROUND(M75/1000,0)*1000 -> 30000 | O75: =K75*L75/10^6 -> 231.04 | S75: 0
D76: 2:1 | E76: 7125 | F76: 7125 | G76: 50.765625 | H76: 14250 | I76: =I69 -> 10 | J76: 2X1 | K76: =E76*4 -> 28500 | L76: =F76*2 -> 14250 | M76: 42750 | N76: 43000 | O76: 406.125 | S76: =IF(O76<$W$17,0,IF(O76>$W$18,0,1)) -> 0
C77: Mean/Lane | D77: 3:1 | E77: 6680 | F77: 6680 | G77: 44.6224 | H77: 13360 | I77: =I72 -> 10 | J77: 3X1 | K77: =E77*6 -> 40080 | L77: =F77*2 -> 13360 | M77: 53440 | N77: 53000 | O77: 535.4688 | S77: 0
D78: 4:1 | E78: 6700 | F78: 6700 | G78: 44.89 | H78: 13400 | I78: 10 | J78: 4X1 | K78: =E78*8 -> 53600 | L78: =F78*2 -> 13400 | M78: 67000 | N78: 67000 | O78: 718.24 | S78: 0
C79: =AVERAGE(E76:F81) -> 6964.5 | D79: 1:1 | E79: 7250 | F79: 7250 | G79: =E79*F79/10^6 -> 52.5625 | H79: =E79+F79 -> 14500 | I79: 10 | J79: 2x2 | K79: =E79*4 -> 29000 | L79: =F79*4 -> 29000 | M79: =K79+L79 -> 58000 | N79: =ROUND(M79/1000,0)*1000 -> 58000 | O79: =K79*L79/10^6 -> 841 | S79: 1
C80: Stdev | D80: 3:2 | E80: 6945 | F80: 6945 | G80: =E80*F80/10^6 -> 48.233025 | H80: =E80+F80 -> 13890 | I80: 10 | J80: 3x2 | K80: =E80*6 -> 41670 | L80: =F80*4 -> 27780 | M80: =K80+L80 -> 69450 | N80: =ROUND(M80/1000,0)*1000 -> 69000 | O80: =K80*L80/10^6 -> 1157.5926 | S80: 0
C81: =STDEV(E76:F81) -> 223.019567 | D81: 2:1 | E81: 7087 | F81: 7087 | G81: 50.225569 | H81: 14174 | I81: =I77 -> 10 | J81: 4X2 | K81: =E81*8 -> 56696 | L81: =F81*4 -> 28348 | M81: 85044 | N81: 85000 | O81: 1607.218208 | S81: 0
S82: 0
C83: Forward Jughandle | D83: 1:1 | E83: 6460 | F83: 6460 | G83: =E83*F83/10^6 -> 41.7316 | H83: =E83+F83 -> 12920 | I83: =I76 -> 10 | J83: 1x1 | K83: =E83*2 -> 12920 | L83: =F83*2 -> 12920 | M83: =K83+L83 -> 25840 | N83: =ROUND(M83/1000,0)*1000 -> 26000 | O83: =K83*L83/10^6 -> 166.9264 | S83: 0
D84: 1:1 | E84: 3980 | F84: 3980 | G84: 15.8404 | H84: 7960 | I84: 10 | J84: 2x2 | K84: =E84*4 -> 15920 | L84: =F84*4 -> 15920 | M84: 31840 | N84: 32000 | O84: 253.4464 | S84: 0
C85: Mean/Lane | D85: 3:2 | E85: 3460 | F85: 3460 | G85: =E85*F85/10^6 -> 11.9716 | H85: =E85+F85 -> 6920 | I85: 10 | J85: 3x2 | K85: =E85*6 -> 20760 | L85: =F85*4 -> 13840 | M85: =K85+L85 -> 34600 | N85: =ROUND(M85/1000,0)*1000 -> 35000 | O85: =K85*L85/10^6 -> 287.3184 | S85: 0
C86: (STOPPED-LT) | D86: 2:1 | E86: 6145 | F86: 6145 | G86: =E86*F86/10^6 -> 37.761025 | H86: =E86+F86 -> 12290 | I86: =I77 -> 10 | J86: 2X1 | K86: =E86*4 -> 24580 | L86: =F86*2 -> 12290 | M86: =K86+L86 -> 36870 | N86: =ROUND(M86/1000,0)*1000 -> 37000 | O86: =K86*L86/10^6 -> 302.0882 | S86: 0
C87: =AVERAGE(E83:F89) -> 4672.857143 | D87: 2:1 | E87: 3090 | F87: 3090 | G87: =E87*F87/10^6 -> 9.5481 | H87: =E87+F87 -> 6180 | I87: =I81 -> 10 | J87: 4X2 | K87: =E87*8 -> 24720 | L87: =F87*4 -> 12360 | M87: =K87+L87 -> 37080 | N87: =ROUND(M87/1000,0)*1000 -> 37000 | O87: =K87*L87/10^6 -> 305.5392 | S87: 0
C88: Stdev | D88: 3:1 | E88: 5125 | F88: 5125 | G88: 26.265625 | H88: 10250 | I88: =I79 -> 10 | J88: 3X1 | K88: =E88*6 -> 30750 | L88: =F88*2 -> 10250 | M88: 41000 | N88: 41000 | O88: 315.1875 | S88: 0
C89: =STDEV(E83:F89) -> 1244.785608 | D89: 4:1 | E89: 4450 | F89: 4450 | G89: 19.8025 | H89: 8900 | I89: 10 | J89: 4X1 | K89: =E89*8 -> 35600 | L89: =F89*2 -> 8900 | M89: 44500 | N89: 45000 | O89: 316.84 | S89: 0
S90: 0
C91: Reverse Jughandle | D91: 1:1 | E91: 5975 | F91: 5975 | G91: =E91*F91/10^6 -> 35.700625 | H91: =E91+F91 -> 11950 | I91: =I83 -> 10 | J91: 1x1 | K91: =E91*2 -> 11950 | L91: =F91*2 -> 11950 | M91: =K91+L91 -> 23900 | N91: =ROUND(M91/1000,0)*1000 -> 24000 | O91: =K91*L91/10^6 -> 142.8025 | S91: 0
D92: 2:1 | E92: 5700 | F92: 5700 | G92: 32.49 | H92: 11400 | I92: =I83 -> 10 | J92: 2X1 | K92: =E92*4 -> 22800 | L92: =F92*2 -> 11400 | M92: 34200 | N92: 34000 | O92: 259.92 | S92: 0
C93: Mean/Lane | D93: 3:1 | E93: 5450 | F93: 5450 | G93: 29.7025 | H93: 10900 | I93: =I84 -> 10 | J93: 3X1 | K93: =E93*6 -> 32700 | L93: =F93*2 -> 10900 | M93: 43600 | N93: 44000 | O93: 356.43 | S93: 0
D94: 4:1 | E94: 5235 | F94: 5235 | G94: 27.405225 | H94: 10470 | I94: 10 | J94: 4X1 | K94: =E94*8 -> 41880 | L94: =F94*2 -> 10470 | M94: 52350 | N94: 52000 | O94: 438.4836 | S94: 0
C95: =AVERAGE(E91:F97) -> 5579.285714 | D95: 1:1 | E95: 5685 | F95: 5685 | G95: =E95*F95/10^6 -> 32.319225 | H95: =E95+F95 -> 11370 | I95: 10 | J95: 2x2 | K95: =E95*4 -> 22740 | L95: =F95*4 -> 22740 | M95: =K95+L95 -> 45480 | N95: =ROUND(M95/1000,0)*1000 -> 45000 | O95: =K95*L95/10^6 -> 517.1076 | S95: 0
C96: Stdev | D96: 3:2 | E96: 5560 | F96: 5560 | G96: =E96*F96/10^6 -> 30.9136 | H96: =E96+F96 -> 11120 | I96: 10 | J96: 3x2 | K96: =E96*6 -> 33360 | L96: =F96*4 -> 22240 | M96: =K96+L96 -> 55600 | N96: =ROUND(M96/1000,0)*1000 -> 56000 | O96: =K96*L96/10^6 -> 741.9264 | S96: 0
C97: =STDEV(E91:F97) -> 226.9094799 | D97: 2:1 | E97: 5450 | F97: 5450 | G97: 29.7025 | H97: 10900 | I97: =I92 -> 10 | J97: 4X2 | K97: =E97*8 -> 43600 | L97: =F97*4 -> 21800 | M97: 65400 | N97: 65000 | O97: 950.48 | S97: 1

Sheet Flowcharts (hidden)
A1: Stage 1 (From Bastian)
O2: Bastian's 1st Draft
O3: Please take a look at this potential framework for Stage 1 based on the discussion this morning. I tried to capture the discussion related to Stage 0 and Stage 1, including sequence and decision points. In the framework, blue cells are steps in the method (and maybe tabs in the tool?), orange are data needs, and green are questions each step is trying to answer (we can discuss these further in the guide). The yellow cells are three decision points by the user:
O4: 1.2 Early Exits decides what to exclude early-on based on the initial feasibility
O5: 1.5 decides on the relative weights for the stage 1 assessment method based on context and equity (we should develop some defaults for this)
O6: 1.8 then decides what to move on to Stage 2
O7: There is NOT a decision point between various components of Step 1.6 … idea is for a user to look at ALL assessment methods before jumping to any conclusions.
O9: Shannon's Comments
O10: As someone who was not on the call last week but has a background on ICE, I think this graphic makes a lot of sense. My only comment is on the second question in 1.7 “What alternatives are feasible?” this seems more suited for 1.8. The way its laid out currently makes it seem like at 1.7 you need to make a cut of intersections (i.e. cut what is not feasible in 1.7, then in 1.8 take all the feasible and pick your preferred(s) for further assessment which feels a bit like putting your hand on the scale), but I think it makes more sense for there to be only 2 cuts (1.2 and 1.8).
O15: Paul's Comments
O16: 1.1: Is functional class necessary as a data need? Won’t AADT give you similar information?
O17: 1.2: In the question, add “forms” after “intersection/interchange”
O18: 1.3: Perhaps “Equity Assessment”, since the results of this step aren’t being used to screen out any intersection concepts in Stage 1. For data needs, suggest deleting “census data” since that is covered by “demographic data” and adding “travel modes and patterns” and “local history”. For questions: “What travel modes are present at the intersection?”, “What are the likely travel needs for users of each mode?”, “How have the surrounding neighborhoods and major road developed over time?”
O21: 1.4: In the first question, change “improvement” to “project”.
O22: 1.5: Add as the second question, “What are the relative weights to be assigned to different intersection forms?” (for those agencies wanting to prioritize certain intersection forms).
O23: After step 1.5, I think you need a step to develop initial concepts that set details of the form and control for each remaining intersection type (e.g., need for exclusive turn lanes, number of approach lanes, general footprint), as these will affect the results of all aspects of the Stage 1 analysis. This step may need to be iterative with step 1.6 (e.g., to make the v/c work, you need to add exclusive turn lanes, but doing so makes the ped/bike score worse or requires more ROW than is available).
O26: 1.6: Suggest changing “intersection form” to “intersection concept” from this point forward.
O27: 1.6.4: Should a basic ROW screening be conducted as part of the environmental screening (e.g., is the roadway already built out to the limits of the ROW?)
A54: Stage 2 (From Paul)

Sheet Overview
C3: NCHRP Project 17-98
B4: Intersection Control Evaluation (ICE) Process Tool
B7: Build: 2024-09
B9: NCHRP Project 17-98
B10: © 2023 National Academy of Sciences
B12: ACKNOWLEDGMENT OF SPONSORSHIP
B13: The National Cooperative Highway Research Program (NCHRP) produces ready-to-implement solutions to the challenges facing transportation professionals. NCHRP is sponsored by the individual state departments of transportation of the American Association of State Highway and Transportation Officials. NCHRP is administered by the Transportation Research Board (TRB), part of the National Academies of Sciences, Engineering, and Medicine, under a cooperative agreement with the Federal Highway Administration (FHWA).
B15: COPYRIGHT
B16: This material and the copyrights herein are owned by the National Academies of Sciences, Engineering, and Medicine. Permission to reproduce any copyrighted material included herein was obtained by the contractor.
B18: DISCLAIMER
B19: Any opinions and conclusions expressed or implied in resulting research products are those of the individuals and organizations who performed the research and are not necessarily those of TRB; the National Academies of Sciences, Engineering, and Medicine; the FHWA; or NCHRP sponsors.
B20: The material has not been edited by TRB.
B22: Any software included is offered as is, without warranty or promise of support of any kind either expressed or implied. Under no circumstance will the National Academy of Sciences or the Transportation Research Board (collectively “TRB”) be liable for any loss or damage caused by the installation or operation of this product. TRB makes no representation or warranty of any kind, expressed or implied, in fact or in law, including without limitation, the warranty of merchantability or the warranty of fitness for a particular purpose, and shall not in any case be liable for any consequential or special damages.
B24: INSTRUCTIONS
B25: The ICE Process Tool develops a short list of and recommendations for implementation of alternative intersection concepts. This is a research-grade software tool that does not provide the enhanced user interface and extensive error checking that commercial software would provide.
B27: The spreadsheet consists of four tabs in addition to this overview. The Instructions tab provides guidance on when and how to use the tool. The Stage 1A worksheet eliminates intersection alternatives from consideration on the basis of high-level data, and the Stage 1B worksheet narrows intersection alternatives to a shortlist to be evaluate in greater detail. The Stage 2 tab is used to document the detailed alternative analysis and the final project recommendation.
B30: User-provided data are entered into the light yellow cells on each worksheet. Orange cells indicate optional inputs. The worksheets are password protected, with only the required user inputs being editable. The password for unlocking the engine may be requested from Bastian Schroeder, bschroeder@kittelson.com.
B32: VERSION HISTORY
B33: 2023-07 | C33: Final submission to NCHRP
B34: 2024-09 | C34: Corrected cell reference in Stage 1A

Sheet Instructions
B2: INTERSECTION EVALUATION TOOL (ICE) USER INSTRUCTIONS
B4: Stage/Workflow No. | C4: Input Fields | D4: External Tool(s) Used
B5: STAGE 1A
B6: 1. Project Data | C6: Enter basic project data in yellow fields including project name, location, intersecting road names, analyst, date of analysis and a brief description of the project purpose (250 characters max) | D6: None
B7: 2. Project Context | C7: Using text and drop down boxes, select context including applicability of interchange/grade separation, surrounding area context, number of lanes and short answers to equity context questions (225 characters max) | D7: None
B8: 3. Roadway Data | C8: Select roadway functional class, no. of lanes, AADT and ROW for each facility. Note: AADT values should be future design year volumes if user is intending on evaluating intersection alternative capacity through a project design year. | D8: None
B9: 4. Intersection Feasibility | C9: Based on the data from previous workflow items, the Tool will select which intersection alternatives should be carried into Stage 1A and which should be eliminated; however, in some cases, the used must decide if the intersection alternative is applicable by changing the --Yes/No-- cell value to either Yes or No. At the bottom of the page, the user can enter (write-in) a unique intersection alternative (excluded in list above) and select that alternate for consideration in Stage 1B. | D9: None
B10: STAGE 1B
B11: 5. Screening Data | C11: Users input screening results using CAP-X, Safe Systems Intersection (SSI) and a high-level determination of environmental impacts (using drop-down menu choices) for each alternative. Users will use this data to evaluate and select which alternative should procced for further analysis in Stage 2 by selecting "Yes" in the far-right column. | D11: CAP-X Tool CAP-X Bike/Ped Tool SSI Worksheet
B12: 6. Shortlist | C12: The data from the previous workflow item is re-ordered according to SSI score, and the data inputs are color coded (shades of green, yellow, red) to rank the intersection alternatives for each category. In the box at the bottom of the worksheet, users should input the factors that led to the elimination of the alternatives not moving forward into Stage 2. | D12: None
B13: STAGE 2
B14: Context of Stage 2: | C14: The Stage 2 Worksheet is meant to be filled out and used at a Project Review Meeting to document the decision making process determine the final intersection alternative selection of the project. At the top of the form, fill in the date of the meeting and all project team members in attendance. | D14: None
B15: 7. Context & Equity Summary | C15: This workflow item summarizes the equity goals for the project input in Stage 1A and users are to include key findings from the Equity worksheet exercise. | D15: Equity Worksheet
B16: 8. Selection Criteria | C16: Users enter more detailed screening data, average peak hour delays (from detailed capacity analysis using HCS, Synchro etc.), results from the ped/bike 20-flags analysis, predictive safety scores, life cycle and Benefit-Cost ratios, the level of support from stakeholder and the public and a determination if the alternative meets project equity goals. | D16: Traffic analysis software/PPEAG 20-Flags Calculator SPICE Tool Life Cycle Cost Estimation ToolBike/Ped 20-Flags Method Predictive Safety Analysis Cost estimating worksheet
B17: 9. Review Mtg Notes & Recommendations | C17: The intent is to use this information to decide the Recommended Alternative (using drop-down box) and document the meeting notes, including why the Final Alternative is recommended. | D17: None

Sheet Stage1A
A1: INTERSECTION EVALUATION (ICE) PROCESS TOOL STAGE 1A | I1: Hide | J1: Hide | K1: Hide | L1: Hide | N1: Hide | O1: Hide | P1: Hide | Q1: Hide | R1: Hide | S1: Hide | T1: Hide | U1: Hide | V1: Hide | W1: Hide | X1: Hide | Y1: Hide | Z1: Hide | AA1: Hide | AB1: Hide | AC1: Hide | AD1: Hide | AE1: Hide | AF1: Hide | AG1: Hide | AH1: Hide
I2: STAGE 2 SHORTLIST (16 Max) | P2: Functional Roadway Classification | T2: Yes/No | V2: Area Context | X2: K-factor | Z2: Estimated Turning Fractions
A3: 1. PROJECT DATA | I3: =IF(ISBLANK(J3),"",1) -> 1 | J3: =_xlfn._xlws.FILTER(IntType,INDIRECT(G24)="Yes","") ->  | P3: -- roadway type -- | T3: --Yes/No-- | V3: -- Area Context -- | X3: =VLOOKUP(D14,V4:X8,3,0) -> 0.1 | Z3: From | AA3: To | AB3: Code | AC3: LT% | AD3: TH% | AE3: RT%
A4: Project Name: | B4: State University Intersection Study | I4: =IF(ISBLANK(J4),"",2) -> 2 | P4: Freeway/Expressway | R4: 1 | T4: Yes | V4: Urban Core | X4: 0.12 | Z4: Principal Arterial | AA4: Principal Arterial | AB4: 11 | AC4: 0.2 | AD4: 0.51 | AE4: 0.29
A5: Location: | B5: College Town, North Carolina | I5: =IF(ISBLANK(J5),"",3) -> 3 | P5: Principal Arterial | R5: 2 | T5: No | V5: Urban | X5: 0.11 | Z5: Principal Arterial | AA5: Minor Arterial | AB5: 12 | AC5: 0.14 | AD5: 0.77 | AE5: 0.09
A6: Major Road: | B6: University Avenue | E6: Analyst: | F6: Kittelson | I6: =IF(ISBLANK(J6),"",4) -> 4 | P6: Minor Arterial | R6: 3 | V6: Suburban | X6: 0.1 | Z6: Principal Arterial | AA6: Major Collector | AB6: 13 | AC6: 0.09 | AD6: 0.82 | AE6: 0.09
A7: Crossing Street: | B7: College Avenue | E7: Analysis Date: | F7: 2023-02-15 | I7: =IF(ISBLANK(J7),"",5) -> 5 | P7: Collector | R7: 4 | V7: Rural Town | X7: 0.09 | Z7: Principal Arterial | AA7: Local Road | AB7: 14 | AC7: 0.06 | AD7: 0.92 | AE7: 0.02
A8: Brief Description of Project Purpose: | B8: [Provide brief description: 140 Characters Max] | I8: =IF(ISBLANK(J8),"",6) -> 6 | P8: Local Road | R8: 5 | V8: Rural | X8: 0.08 | Z8: Principal Arterial | AA8: Principal Arterial | AB8: 21 | AC8: 0.32 | AD8: 0.4 | AE8: 0.28
I9: =IF(ISBLANK(J9),"",7) -> 7 | P9: Crossing Road Code | R9: =VALUE(CONCATENATE(VLOOKUP(C22,P4:R7,3,0),VLOOKUP(C21,P4:R7,3,0))) -> 42 | Z9: Minor Arterial | AA9: Minor Arterial | AB9: 22 | AC9: 0.22 | AD9: 0.59 | AE9: 0.19
I10: =IF(ISBLANK(J10),"",8) ->  | V10: Lane Adj Factor | Z10: Minor Arterial | AA10: Major Collector | AB10: 23 | AC10: 0.19 | AD10: 0.73 | AE10: 0.08
A11: 2. PROJECT CONTEXT | I11: =IF(ISBLANK(J11),"",9) ->  | P11: Peak Period | V11: 1 | W11: 1 | Z11: Minor Arterial | AA11: Local Road | AB11: 24 | AC11: 0.11 | AD11: 0.4 | AE11: 0.49
A12: Is an interchange form present or viable given the local context? | G12: No | I12: =IF(ISBLANK(J12),"",10) ->  | P12: 1 | Q12: AM Peak | V12: 2 | W12: 1.81 | Z12: Major Collector | AA12: Principal Arterial | AB12: 31 | AC12: 0.43 | AD12: 0.23 | AE12: 0.34
A13: Is a grade separation form present or viable given the local context? | G13: Yes | I13: =IF(ISBLANK(J13),"",11) ->  | P13: 2 | Q13: PM Peak | V13: 3 | W13: 2.67 | Z13: Major Collector | AA13: Minor Arterial | AB13: 32 | AC13: 0.34 | AD13: 0.33 | AE13: 0.33
A14: What is surrounding intersection area context? | D14: Suburban | E14: Number of intersection legs? | G14: 4 | I14: =IF(ISBLANK(J14),"",12) ->  | P14: 3 | Q14: Mid Day | V14: 4 | W14: 3.5 | Z14: Major Collector | AA14: Major Collector | AB14: 33 | AC14: 0.2 | AD14: 0.58 | AE14: 0.22
A15: What travel modes are present (or likely to be present) at the study location? | D15: [Provide short answer: 225 characters max] | I15: =IF(ISBLANK(J15),"",13) ->  | V15: MajLF | W15: =VLOOKUP(E21,V11:W14,2,0) -> 1.81 | Z15: Major Collector | AA15: Local Road | AB15: 34 | AC15: 0.35 | AD15: 0.55 | AE15: 0.1
A16: What are the likely travel needs for users of each mode? | D16: [Provide short answer: 225 characters max] | I16: =IF(ISBLANK(J16),"",14) ->  | V16: MinLF | W16: =VLOOKUP(E22,V11:W14,2,0) -> 1 | Z16: Local Road | AA16: Principal Arterial | AB16: 41 | AC16: 0.42 | AD16: 0.09 | AE16: 0.49
A17: How have the surrounding neighborhoods and major road developed over time? | D17: [Provide short answer: 225 characters max] | I17: =IF(ISBLANK(J17),"",15) ->  | Z17: Local Road | AA17: Minor Arterial | AB17: 42 | AC17: 0.75 | AD17: 0.02 | AE17: 0.23
A18: What are the surrounding land-uses? Do they differ by side of the road? | D18: [Provide short answer: 225 characters max] | I18: =IF(ISBLANK(J18),"",15) ->  | Z18: Local Road | AA18: Major Collector | AB18: 43 | AC18: 0.14 | AD18: 0.61 | AE18: 0.25
A19: 3. ROADWAY DATA | I19: =IF(ISBLANK(J19),"",16) ->  | Z19: Local Road | AA19: Local Road | AB19: 44 | AC19: 0.3 | AD19: 0.4 | AE19: 0.3
A20: Roadway Name | C20: Functional Class | E20: Lanes | F20: AADT | G20: Right-of-Way
A21: =Intersection -> University Avenue | C21: Principal Arterial | E21: 2 | F21: 12000 | G21: 100
A22: =B7 -> College Avenue | C22: Collector | E22: 1 | F22: 5000 | G22: 50 | M22: Exceeds Capacity? Check | N22: Too Much Capacity? Check
A23: 4. INTERSECTION FEASIBILITY | I23: Major Street AADT/lane | J23: AADT/lane at Failure | K23: Minor Street AADT/lane | L23: AADT/lane at Failure | O23: Min Maj ST ROW | P23: Exclusion Factor 1 | Q23: Exclusion Factor 2 | R23: Exclusion Factor 3 | S23: Exclusion Factor 4-5 | T23: Proceed Factor 6-7 | U23: Proceed Factor 8 | V23: Cost | W23: MAJOR STREET NUMBER OF APPROACH THROUGH LANES | AC23: MINOR STREET NUMBER OF APPROACH THROUGH LANES
A24: Intersection Type | C24: Recommendations for Further Study | G24: Shortlist? | W24: FACILITY | X24: 1 | Y24: 2 | Z24: 3 | AA24: 4 | AB24: 5 | AD24: 1 | AE24: 2 | AF24: 3
A25: All-Way Stop (AWS) | C25: =IF(P25<>0,VLOOKUP(P25,$I$57:$J$64,2,0),IF(Q25<>0,VLOOKUP(Q25,$I$57:$J$64,2,0),IF(R25<>0,VLOOKUP(R25,$I$57:$J$64,2,0),IF(S25<>0,VLOOKUP(S25,$I$57:$J$64,2,0),IF(T25<>0,VLOOKUP(T25,$I$57:$J$64,2,0),IF(U25<>0,VLOOKUP(U25,$I$57:$J$64,2,0),"Consider in Stage 2 Analysis")))))) -> Infeasible due to volumes exceeding intersection capacity | G25: =IF(SUM(P25:U25)=0,"Yes",IF(SUM(P25:S25)=0,"--Yes/No--","No")) -> No | I25: =AADT_Maj -> 12000 | J25: =VLOOKUP(A25,$A$25:$AB$40,($E$21+23),0) -> 7775 | K25: =AADT_Min -> 5000 | L25: =VLOOKUP(A25,$A$25:$AH$40,($E$22+29),0) -> 7775 | M25: =IF(AND(I25<J25,K25<L25),0,1) -> 1 | N25: =IF(AND(I25<J25*$O$22,K25<L25*$O$22),1,0) -> 0 | P25: 0 | Q25: 0 | R25: 0 | S25: =IF(M25=1,4,IF(N25=1,5,0)) -> 4 | T25: 0 | U25: 0 | V25: $ | W25: =A25 -> All-Way Stop (AWS) | X25: 7775 | Y25: =X25 -> 7775 | Z25: =Y25 -> 7775 | AA25: 7775 | AB25: 7775 | AC25: =A25 -> All-Way Stop (AWS) | AD25: 7775 | AE25: =AD25 -> 7775 | AF25: =AE25 -> 7775
A26: Minor Street Stop (TWSC) | C26: =IF(P26<>0,VLOOKUP(P26,$I$57:$J$64,2,0),IF(Q26<>0,VLOOKUP(Q26,$I$57:$J$64,2,0),IF(R26<>0,VLOOKUP(R26,$I$57:$J$64,2,0),IF(S26<>0,VLOOKUP(S26,$I$57:$J$64,2,0),IF(T26<>0,VLOOKUP(T26,$I$57:$J$64,2,0),IF(U26<>0,VLOOKUP(U26,$I$57:$J$64,2,0),"Consider in Stage 2 Analysis")))))) -> Consider in Stage 2 Analysis | G26: =IF(SUM(P26:U26)=0,"Yes",IF(SUM(P26:S26)=0,"--Yes/No--","No")) -> Yes | I26: 12000 | J26: =VLOOKUP(A26,$A$25:$AB$40,($E$21+23),0) -> 15748 | K26: 5000 | L26: =VLOOKUP(A26,$A$25:$AH$40,($E$22+29),0) -> 9513 | M26: =IF(AND(I26<J26,K26<L26),0,1) -> 0 | N26: 0 | P26: 0 | Q26: 0 | R26: 0 | S26: 0 | T26: 0 | U26: 0 | V26: $ | W26: =A26 -> Minor Street Stop (TWSC) | X26: 12400 | Y26: 15748 | Z26: 19824 | AA26: =Z26 -> 19824 | AB26: =Z26 -> 19824 | AC26: =A26 -> Minor Street Stop (TWSC) | AD26: 9513 | AE26: 12824 | AF26: =AE26 -> 12824
A27: Traffic Signal | C27: Consider in Stage 2 Analysis | G27: Yes | I27: 12000 | J27: 29610 | K27: 5000 | L27: 14950 | M27: 0 | N27: 0 | P27: 0 | Q27: 0 | R27: 0 | S27: 0 | T27: 0 | U27: 0 | V27: $ | W27: Traffic Signal | X27: =15870 -> 15870 | Y27: 29610 | Z27: 40314 | AA27: 53752 | AB27: 68500 | AC27: Traffic Signal | AD27: 14950 | AE27: 26220 | AF27: 36350
A28: Mini Roundabout | C28: Infeasible due to volumes exceeding intersection capacity | G28: No | I28: 12000 | J28: 9074 | K28: 5000 | L28: 9074 | M28: 1 | N28: 0 | P28: 0 | Q28: 0 | R28: 0 | S28: 4 | T28: 0 | U28: 0 | V28: $ | W28: Mini Roundabout | X28: 9074 | Y28: =X28 -> 9074 | Z28: =Y28 -> 9074 | AA28: 9074 | AB28: 9074 | AC28: Mini Roundabout | AD28: 9074 | AE28: 12580 | AF28: =AD28 -> 9074
A29: Single Lane Roundabout | C29: Consider in Stage 2 Analysis | G29: Yes | I29: 12000 | J29: 14800 | K29: 5000 | L29: 10675 | M29: 0 | N29: 0 | P29: 0 | Q29: 0 | R29: 0 | S29: 0 | T29: 0 | U29: 0 | V29: $ | W29: Single Lane Roundabout | X29: 14800 | Y29: =X29 -> 14800 | Z29: =Y29 -> 14800 | AA29: 14800 | AB29: 14800 | AC29: Single Lane Roundabout | AD29: 10675 | AE29: =AD29 -> 10675 | AF29: =AE29 -> 10675
A30: Multilane Roundabout | C30: Consider in Stage 2 Analysis | G30: Yes | I30: 12000 | J30: 20965 | K30: 5000 | L30: 10780 | M30: 0 | N30: 0 | P30: 0 | Q30: 0 | R30: 0 | S30: 0 | T30: 0 | U30: 0 | V30: $$ | W30: Multilane Roundabout | X30: 15566 | Y30: 20965 | Z30: =Y30 -> 20965 | AA30: =Z30 -> 20965 | AB30: 20965 | AC30: Multilane Roundabout | AD30: 10780 | AE30: 20352 | AF30: =AE30 -> 20352
A31: Bowtie Intersection | C31: Consider in Stage 2 Analysis | G31: Yes | I31: 12000 | J31: 28750 | K31: 5000 | L31: 14053 | M31: 0 | N31: 0 | P31: 0 | Q31: 0 | R31: 0 | S31: 0 | T31: 0 | U31: 0 | V31: $$ | W31: Bowtie Intersection | X31: 15200 | Y31: 28750 | Z31: 40875 | AA31: 55148 | AB31: =AA31 -> 55148 | AC31: Bowtie Intersection | AD31: 14053 | AE31: 28376 | AF31: 28376
A32: RCUT / J-Turn (stop control) | C32: Caution: Intersection type may not fit within current ROW | G32: --Yes/No-- | I32: 12000 | J32: 24165.5 | K32: 5000 | L32: 11945.05 | M32: 0 | N32: 0 | O32: 150 | P32: 0 | Q32: 0 | R32: 0 | S32: 0 | T32: =IF($G$21<O32,6,0) -> 6 | U32: =IF(OR($D$14="Dense Urban",$D$14="Urban"),8,0) -> 0 | V32: $$ | W32: RCUT / J-Turn (stop control) | X32: =0.85*X33 -> 12325 | Y32: =0.85*Y33 -> 24165.5 | Z32: 28903.4 | AA32: 45390 | AB32: 61625 | AC32: RCUT / J-Turn (stop control) | AD32: =0.85*AD31 -> 11945.05 | AE32: =0.85*AE31 -> 24119.6 | AF32: 24119.6
A33: RCUT / RCI (signalized) | C33: Caution: Intersection type may not fit within current ROW | G33: --Yes/No-- | I33: 12000 | J33: 28430 | K33: 5000 | L33: 13568 | M33: 0 | N33: 0 | O33: 150 | P33: 0 | Q33: 0 | R33: 0 | S33: 0 | T33: =IF($G$21<O33,6,0) -> 6 | U33: 0 | V33: $$ | W33: RCUT / RCI (signalized) | X33: =AB33/5 -> 14500 | Y33: =28430 -> 28430 | Z33: 34004 | AA33: 53400 | AB33: 72500 | AC33: RCUT / RCI (signalized) | AD33: 13568 | AE33: 26509 | AF33: 28800
A34: Partial Median U-Turn | C34: Caution: Intersection type may not fit within current ROW | G34: --Yes/No-- | I34: 12000 | J34: 24100 | K34: 5000 | L34: 13775 | M34: 0 | N34: 0 | O34: 150 | P34: 0 | Q34: 0 | R34: 0 | S34: 0 | T34: 6 | U34: 0 | V34: $$ | W34: Partial Median U-Turn | X34: 14000 | Y34: 24100 | Z34: 35454 | AA34: 45713 | AB34: =AA34 -> 45713 | AC34: Partial Median U-Turn | AD34: 13775 | AE34: 20831 | AF34: =AE34 -> 20831
A35: Full Median U-Turn | C35: Caution: Intersection type may not fit within current ROW | G35: --Yes/No-- | I35: 12000 | J35: 30160 | K35: 5000 | L35: 15330 | M35: 0 | N35: 0 | O35: 150 | P35: 0 | Q35: 0 | R35: 0 | S35: 0 | T35: 6 | U35: 0 | V35: $$ | W35: Full Median U-Turn | X35: 16000 | Y35: 30160 | Z35: 40830 | AA35: 61900 | AB35: 79000 | AC35: Full Median U-Turn | AD35: 15330 | AE35: 24740 | AF35: 34800
A36: Partial Displaced Left Turn (DLT) | C36: Consider in Stage 2 Analysis | G36: Yes | I36: 12000 | J36: 30580 | K36: 5000 | L36: 15853 | M36: 0 | N36: 0 | P36: 0 | Q36: 0 | R36: 0 | S36: 0 | T36: 0 | U36: 0 | V36: $$ | W36: Partial Displaced Left Turn (DLT) | X36: 16000 | Y36: 30580 | Z36: 44985 | AA36: 56344 | AB36: =AA36 -> 56344 | AC36: Partial Displaced Left Turn (DLT) | AD36: 15853 | AE36: 27203 | AF36: =AE36 -> 27203
A37: Full DLT | C37: Consider in Stage 2 Analysis | G37: Yes | I37: 12000 | J37: 38225 | K37: 5000 | L37: 19816.25 | M37: 0 | N37: 0 | P37: 0 | Q37: 0 | R37: 0 | S37: 0 | T37: 0 | U37: 0 | V37: $$ | W37: Full DLT | X37: =1.25*X36 -> 20000 | Y37: =1.25*Y36 -> 38225 | Z37: 56231.25 | AA37: 70430 | AB37: =AA37 -> 70430 | AC37: Full DLT | AD37: =1.25*AD36 -> 19816.25 | AE37: =1.25*AE36 -> 34003.75 | AF37: =AE37 -> 34003.75
A38: Quadrant Roadway | C38: Caution: Intersection type may impact ROW in quadrants | G38: --Yes/No-- | I38: 12000 | J38: 32950 | K38: 5000 | L38: 16047 | M38: 0 | N38: 0 | P38: 0 | Q38: 0 | R38: 0 | S38: 0 | T38: 7 | U38: 0 | V38: $$ | W38: Quadrant Roadway | X38: 16400 | Y38: 32950 | Z38: 49404 | AA38: 58860 | AB38: =AA38 -> 58860 | AC38: Quadrant Roadway | AD38: 16047 | AE38: 31557 | AF38: 31557
A39: Jughandle | C39: Caution: Intersection type may impact ROW in quadrants | G39: --Yes/No-- | I39: 12000 | J39: 20250 | K39: 5000 | L39: 8872 | M39: 0 | N39: 0 | P39: 0 | Q39: 0 | R39: 0 | S39: 0 | T39: 7 | U39: =IF(OR($D$14="Dense Urban",$D$14="Urban"),8,0) -> 0 | V39: $$ | W39: Jughandle | X39: 12920 | Y39: 20250 | Z39: 25755 | AA39: 30160 | AB39: =AA39 -> 30160 | AC39: Jughandle | AD39: 8872 | AE39: 14040 | AF39: 14040
A40: Continuous Green-T | C40: Infeasible due to the number of intersection legs | G40: No | I40: 12000 | J40: 22207.5 | K40: 5000 | L40: 11212.5 | M40: 0 | N40: 0 | P40: 0 | Q40: 0 | R40: =IF(G14<>3,3,0) -> 3 | S40: 0 | T40: 0 | U40: 0 | V40: $ | W40: Continuous Green-T | X40: =X27*0.75 -> 11902.5 | Y40: =Y27*0.75 -> 22207.5 | Z40: 30235.5 | AA40: 40314 | AB40: 51375 | AC40: Continuous Green-T | AD40: =0.75*AD27 -> 11212.5 | AE40: =0.75*AE27 -> 19665 | AF40: 27262.5
A41: Split Intersection | C41: Infeasible due to volumes not requiring intersection type | G41: No | N41: =IF($F$21>$J$30,0,1) -> 1 | P41: 0 | Q41: =IF($G$13="No",2,0) -> 0 | R41: 0 | S41: 5 | T41: 7 | U41: =IF(OR($D$14="Dense Urban",$D$14="Urban"),8,0) -> 0 | V41: $$$
A42: Echelon Grade Separation | C42: Infeasible due to volumes not requiring intersection type | G42: No | N42: =IF($F$21>$J$30,0,1) -> 1 | P42: 0 | Q42: =IF($G$13="No",2,0) -> 0 | R42: 0 | S42: 5 | T42: 0 | U42: 0 | V42: $$$$
A43: Center Turn Overpass | C43: Infeasible due to volumes not requiring intersection type | G43: No | N43: 1 | P43: 0 | Q43: =IF($G$13="No",2,0) -> 0 | R43: 0 | S43: 5 | T43: 0 | U43: 0 | V43: $$$$
A44: Single Quadrant Grade Separation | C44: Infeasible due to non-interchange context | G44: No | N44: 1 | P44: =IF($G$12="No",1,0) -> 1 | Q44: 0 | R44: 0 | S44: 5 | T44: =IF($G$21<O44,6,7) -> 7 | U44: 0 | V44: $$$$
A45: Diamond Interchange | C45: Infeasible due to non-interchange context | G45: No | N45: 1 | P45: 1 | Q45: 0 | R45: 0 | S45: 5 | T45: 0 | U45: 0 | V45: $$$$
A46: Parclo A | C46: Infeasible due to non-interchange context | G46: No | N46: 1 | P46: 1 | Q46: 0 | R46: 0 | S46: 5 | T46: 7 | U46: 0 | V46: $$$$
A47: Parclo B | C47: Infeasible due to non-interchange context | G47: No | N47: 1 | P47: 1 | Q47: 0 | R47: 0 | S47: 5 | T47: 7 | U47: 0 | V47: $$$$
A48: Diverging Diamond | C48: Infeasible due to non-interchange context | G48: No | N48: 1 | P48: 1 | Q48: 0 | R48: 0 | S48: 5 | T48: 0 | U48: 0 | V48: $$$$
A49: Contraflow Left Interchange | C49: Infeasible due to non-interchange context | G49: No | N49: 1 | P49: 1 | Q49: 0 | R49: 0 | S49: 5 | T49: 0 | U49: 0 | V49: $$$$
A50: Single Point Interchange | C50: Infeasible due to non-interchange context | G50: No | N50: 1 | P50: 1 | Q50: 0 | R50: 0 | S50: 5 | T50: 0 | U50: 0 | V50: $$$$
A51: Single Roundabout Interchange | C51: Infeasible due to non-interchange context | G51: No | N51: 1 | P51: 1 | Q51: 0 | R51: 0 | S51: 5 | T51: 0 | U51: 0 | V51: $$$$
A52: Double Roundabout Interchange | C52: Infeasible due to non-interchange context | G52: No | N52: 1 | P52: 1 | Q52: 0 | R52: 0 | S52: 5 | T52: 0 | U52: 0 | V52: $$$$
A53: Displaced Left Interchange | C53: Infeasible due to non-interchange context | G53: No | N53: 1 | P53: 1 | Q53: 0 | R53: 0 | S53: 5 | T53: 0 | U53: 0 | V53: $$$$
A54: Other (User Defined) | C54: =IF(G54="Yes","Consider in Stage 2 Analysis","") ->  | G54: --Yes/No--
A55: Other (User Defined) | C55: =IF(G55="Yes","Consider in Stage 2 Analysis","") ->  | G55: --Yes/No--
I57: 1 | J57: Infeasible due to non-interchange context
I58: 2 | J58: Infeasible due to non-grade separation interchange context
I59: 3 | J59: Infeasible due to the number of intersection legs
I60: 4 | J60: Infeasible due to volumes exceeding intersection capacity
I61: 5 | J61: Infeasible due to volumes not requiring intersection type
I62: 6 | J62: Caution: Intersection type may not fit within current ROW
I63: 7 | J63: Caution: Intersection type may impact ROW in quadrants
I64: 8 | J64: Caution: Intersection may not be feasible in given area type

Sheet Stage1B
A1: Rank by SSI | B1: INTERSECTION EVALUATION TOOL (ICE) PROCESS TOOL STAGE 1B | L1: Hide | M1: Hide | N1: Hide | O1: Hide | P1: Hide | Q1: Hide | R1: Hide
B3: Project Name: | C3: =ProjName -> State University Intersection Study
B4: Intersection: | C4: =CONCATENATE(Stage1A!B6," at ",Stage1A!B7) -> University Avenue at College Avenue
B5: Location: | C5: =Location -> College Town, North Carolina | Q5: ENV
B6: Analyst: | C6: =Analyst -> Kittelson | G6: Study Date: | I6: =StudyDate -> 2023-02-15 | L6: Max/Min V/C | Q6: --select--
B7: 5. SCREENING DATA | L7: Max V/C | N7: 1 | Q7: No perceived impacts
D8: Cap-X V/C Results | G8: Cap-X Bike/Ped Score | I8: Environmental Impacts | J8: SSI Score | Q8: Needs investigation
B9: Intersection Form | D9: =Peak_1 -> AM Peak | E9: =Peak_2 -> PM Peak | F9: =Peak_3 -> Mid Day | G9: Bike | H9: Ped | L9: Max V/C Check | Q9: Potentially infeasible
A10: =IF($J10="","",RANK($J10,$J$10:$J$25,1)+COUNTIF($J$10:$J10,$J10)-1) -> 4 | B10: =IF(Stage1A!J3<>0,Stage1A!J3,"") ->  | D10: 0.6 | E10: 0.7 | F10: 0.6 | G10: 3 | H10: 4.8 | I10: No perceived impacts | J10: 90 | L10: =IF(D10>$N$7,1,0) -> 0 | M10: =IF(E10>$N$7,1,0) -> 0 | N10: =IF(F10>$N$7,1,0) -> 0 | O10: =IF(SUM(L10:N10)=0,"All",IF(SUM(L10:N10)=1,"2of3",IF(SUM(L10:N10)=2,"1of3","No"))) -> All | Q10: Unacceptable impacts
A11: =IF($J11="","",RANK($J11,$J$10:$J$25,1)+COUNTIF($J$10:$J11,$J11)-1) -> 1 | B11: =IF(Stage1A!J4<>0,Stage1A!J4,"") ->  | D11: 0.9 | E11: 1.1 | F11: 0.8 | G11: 4.9 | H11: 3.2 | I11: Needs investigation | J11: 65 | L11: 0 | M11: 1 | N11: 0 | O11: =IF(SUM(L11:N11)=0,"All",IF(SUM(L11:N11)=1,"2of3",IF(SUM(L11:N11)=2,"1of3","No"))) -> 2of3
A12: =IF($J12="","",RANK($J12,$J$10:$J$25,1)+COUNTIF($J$10:$J12,$J12)-1) -> 5 | B12: =IF(Stage1A!J5<>0,Stage1A!J5,"") ->  | D12: 0.4 | E12: 0.5 | F12: 0.4 | G12: 4.5 | H12: 4.1 | I12: Potentially infeasible | J12: 90 | L12: 0 | M12: 0 | N12: 0 | O12: All | Q12: Yes/No
A13: =IF($J13="","",RANK($J13,$J$10:$J$25,1)+COUNTIF($J$10:$J13,$J13)-1) -> 2 | B13: =IF(Stage1A!J6<>0,Stage1A!J6,"") ->  | D13: 0.3 | E13: 0.4 | F13: 0.3 | G13: 2 | H13: 3.7 | I13: No perceived impacts | J13: 70 | L13: 0 | M13: 0 | N13: 0 | O13: All | Q13: Yes
A14: =IF($J14="","",RANK($J14,$J$10:$J$25,1)+COUNTIF($J$10:$J14,$J14)-1) -> 3 | B14: =IF(Stage1A!J7<>0,Stage1A!J7,"") ->  | D14: 0.4 | E14: 0.5 | F14: 0.4 | G14: 4 | H14: 2.9 | I14: Potentially infeasible | J14: 75 | L14: 0 | M14: 0 | N14: 0 | O14: All | Q14: No
A15: =IF($J15="","",RANK($J15,$J$10:$J$25,1)+COUNTIF($J$10:$J15,$J15)-1) ->  | B15: =IF(Stage1A!J8<>0,Stage1A!J8,"") ->  | L15: 0 | M15: 0 | N15: 0 | O15: All
A16: =IF($J16="","",RANK($J16,$J$10:$J$25,1)+COUNTIF($J$10:$J16,$J16)-1) ->  | B16: =IF(Stage1A!J9<>0,Stage1A!J9,"") ->  | L16: 0 | M16: 0 | N16: 0 | O16: All
A17: =IF($J17="","",RANK($J17,$J$10:$J$25,1)+COUNTIF($J$10:$J17,$J17)-1) ->  | B17: =IF(Stage1A!J10<>0,Stage1A!J10,"") ->  | L17: 0 | M17: 0 | N17: 0 | O17: All | Q17: 99,190,123
A18: =IF($J18="","",RANK($J18,$J$10:$J$25,1)+COUNTIF($J$10:$J18,$J18)-1) ->  | B18: =IF(Stage1A!J11<>0,Stage1A!J11,"") ->  | L18: 0 | M18: 0 | N18: 0 | O18: All | Q18: 255,235,132
A19: =IF($J19="","",RANK($J19,$J$10:$J$25,1)+COUNTIF($J$10:$J19,$J19)-1) ->  | B19: =IF(Stage1A!J12<>0,Stage1A!J12,"") ->  | L19: 0 | M19: 0 | N19: 0 | O19: All | Q19: 251,170,119
A20: =IF($J20="","",RANK($J20,$J$10:$J$25,1)+COUNTIF($J$10:$J20,$J20)-1) ->  | B20: =IF(Stage1A!J13<>0,Stage1A!J13,"") ->  | L20: 0 | M20: 0 | N20: 0 | O20: All | Q20: 248,105,107
A21: =IF($J21="","",RANK($J21,$J$10:$J$25,1)+COUNTIF($J$10:$J21,$J21)-1) ->  | B21: =IF(Stage1A!J14<>0,Stage1A!J14,"") ->  | L21: 0 | M21: 0 | N21: 0 | O21: All
A22: =IF($J22="","",RANK($J22,$J$10:$J$25,1)+COUNTIF($J$10:$J22,$J22)-1) ->  | B22: =IF(Stage1A!J15<>0,Stage1A!J15,"") ->  | L22: 0 | M22: 0 | N22: 0 | O22: All
A23: =IF($J23="","",RANK($J23,$J$10:$J$25,1)+COUNTIF($J$10:$J23,$J23)-1) ->  | B23: =IF(Stage1A!J16<>0,Stage1A!J16,"") ->  | L23: 0 | M23: 0 | N23: 0 | O23: All
A24: =IF($J24="","",RANK($J24,$J$10:$J$25,1)+COUNTIF($J$10:$J24,$J24)-1) ->  | B24: =IF(Stage1A!J17<>0,Stage1A!J17,"") ->  | L24: 0 | M24: 0 | N24: 0 | O24: All
A25: =IF($J25="","",RANK($J25,$J$10:$J$25,1)+COUNTIF($J$10:$J25,$J25)-1) ->  | B25: =IF(Stage1A!J18<>0,Stage1A!J18,"") ->  | L25: 0 | M25: 0 | N25: 0 | O25: All
B26: 6. SHORTLIST
B27: Intersection Form | D27: SSI Score | E27: Period Max V/C met | F27: Bike Score | G27: Ped Score | H27: Cost | I27: Environ Feasibility | J27: Proceed
A28: =MAX(A10:A25) -> 5 | B28: =IFERROR(VLOOKUP(A28,$A$10:$J$25,2,0),"") ->  | D28: =IFERROR(VLOOKUP(A28,$A$10:$J$25,10,0),"") -> 90 | E28: =IFERROR(VLOOKUP(A28,$A$10:$O$25,15,0),"") -> All | F28: =IFERROR(VLOOKUP(A28,$A$10:$J$25,7,0),"") -> 4.5 | G28: =IFERROR(VLOOKUP(A28,$A$10:$J$25,8,0),"") -> 4.1 | H28: =IFERROR(VLOOKUP(B28,Stage1A!$A$23:'Stage1A'!$V$53,22,0),"") ->  | I28: =IFERROR(VLOOKUP(A28,$A$10:$J$25,9,0),"") -> Potentially infeasible | J28: Yes
A29: =A28-1 -> 4 | D29: =IFERROR(VLOOKUP(A29,$A$10:$J$25,10,0),"") -> 90 | E29: All | F29: 3 | G29: =IFERROR(VLOOKUP(A29,$A$10:$J$25,8,0),"") -> 4.8 | H29: =IFERROR(VLOOKUP(B29,Stage1A!$A$23:'Stage1A'!$V$53,22,0),"") ->  | I29: =IFERROR(VLOOKUP(A29,$A$10:$J$25,9,0),"") -> No perceived impacts | J29: No
A30: =A29-1 -> 3 | D30: 75 | E30: All | F30: 4 | G30: =IFERROR(VLOOKUP(A30,$A$10:$J$25,8,0),"") -> 2.9 | H30: =IFERROR(VLOOKUP(B30,Stage1A!$A$23:'Stage1A'!$V$53,22,0),"") ->  | I30: Potentially infeasible | J30: Yes
A31: 2 | D31: 70 | E31: All | F31: 2 | G31: =IFERROR(VLOOKUP(A31,$A$10:$J$25,8,0),"") -> 3.7 | H31: =IFERROR(VLOOKUP(B31,Stage1A!$A$23:'Stage1A'!$V$53,22,0),"") ->  | I31: No perceived impacts | J31: Yes
A32: 1 | D32: 65 | E32: 2of3 | F32: 4.9 | G32: =IFERROR(VLOOKUP(A32,$A$10:$J$25,8,0),"") -> 3.2 | H32: =IFERROR(VLOOKUP(B32,Stage1A!$A$23:'Stage1A'!$V$53,22,0),"") ->  | I32: Needs investigation | J32: Yes
A33: 0 | G33: =IFERROR(VLOOKUP(A33,$A$10:$J$25,8,0),"") ->  | H33: =IFERROR(VLOOKUP(B33,Stage1A!$A$23:'Stage1A'!$V$53,22,0),"") -> 
A34: -1 | H34: =IFERROR(VLOOKUP(B34,Stage1A!$A$23:'Stage1A'!$V$53,22,0),"") -> 
A35: -2 | H35: =IFERROR(VLOOKUP(B35,Stage1A!$A$23:'Stage1A'!$V$53,22,0),"") -> 
A36: -3 | G36: =IFERROR(VLOOKUP(A36,$A$10:$J$25,8,0),"") ->  | H36: =IFERROR(VLOOKUP(B36,Stage1A!$A$23:'Stage1A'!$V$53,22,0),"") -> 
A37: -4 | H37: =IFERROR(VLOOKUP(B37,Stage1A!$A$23:'Stage1A'!$V$53,22,0),"") -> 
A38: -5 | H38: =IFERROR(VLOOKUP(B38,Stage1A!$A$23:'Stage1A'!$V$53,22,0),"") -> 
A39: -6 | H39: =IFERROR(VLOOKUP(B39,Stage1A!$A$23:'Stage1A'!$V$53,22,0),"") -> 
A40: -7 | H40: =IFERROR(VLOOKUP(B40,Stage1A!$A$23:'Stage1A'!$V$53,22,0),"") -> 
A41: -8 | H41: =IFERROR(VLOOKUP(B41,Stage1A!$A$23:'Stage1A'!$V$53,22,0),"") -> 
A42: -9 | H42: =IFERROR(VLOOKUP(B42,Stage1A!$A$23:'Stage1A'!$V$53,22,0),"") -> 
B43: Factors Considered in Excluding Alternatives from Shortlist:
B44: Shortlisted Alternatives for Stage 2 Analysis
B45: =_xlfn._xlws.FILTER(IntType2,INDIRECT(J27)="Yes","") -> 
B61: Describe why alternatives were not shortlisted

Sheet Stage2
T1: Hide | U1: Hide | V1: Hide | W1: Hide | X1: Hide | Y1: Hide | Z1: Hide | AA1: Hide
A2: INTERSECTION EVALUATION TOOL (ICE) PROCESS TOOL STAGE 2 | T2: Stakeholder Support | W2: Stakeholder Support | Z2: 99,190,123
T3: 1 | U3: Strong | W3: 1 | X3: Yes | Z3: 196,215,155
A4: Project Name: | B4: =ProjName -> State University Intersection Study | H4: Review Mtg Date: | J4: 2023-02-22 | T4: 2 | U4: Supportive | W4: 2 | X4: No | Z4: 255,235,132
A5: Intersection: | B5: =Stage1B!C4 -> University Avenue at College Avenue | H5: Review Meeting Attendees (List): | J5: Joe Smith - Town Manager; Steve Jones - DOT Representative; Guy Smiley - Consultant | T5: 3 | U5: Unknown | W5: 3 | X5: Partially | Z5: 251,170,119
A6: Location: | B6: =Location -> College Town, North Carolina | T6: 4 | U6: Negative | Z6: 248,105,107
A7: Analyst: | B7: =Analyst -> Kittelson | E7: Date: | F7: =StudyDate -> 2023-02-15 | T7: 5 | U7: Opposition
A8: 7. CONTEXT & EQUITY SUMMARY
A9: Study area travel modes present and/or likely: | B9: =Stage1A!D15 -> [Provide short answer: 225 characters max] | H9: Summary of Equity Studies (from Equity Worksheet):
H10: [Summary of Equity Study Results]
A12: Travel needs for transporation mode(s): | B12: =Stage1A!D16 -> [Provide short answer: 225 characters max]
A15: History of neighborhood & road development: | B15: =Stage1A!D17 -> [Provide short answer: 225 characters max]
A18: Surrounding land uses / roadside development: | B18: =Stage1A!D18 -> [Provide short answer: 225 characters max]
A21: 8. SELECTION CRITERIA
A22: Intersection Form | C22: Meets Equity Goals? | D22: Stakeholder Support | E22: Average Vehicle Delay | H22: Worst Vehicle Delay | K22: 20-Flag Results | M22: Predictive Safety | O22: Construction Cost | P22: Life Cycle Costs | R22: Environmental Feasibility
E23: =Peak_1 -> AM Peak | F23: =Peak_2 -> PM Peak | G23: =Peak_3 -> Mid Day | H23: =Peak_1 -> AM Peak | I23: =Peak_2 -> PM Peak | J23: =Peak_3 -> Mid Day | K23: Ped | L23: Bike | M23: PDO | N23: Fatal/Inj | P23: Costs | Q23: B/C
A24: <--Select Recommended Alternative--> | R24: =IFERROR(VLOOKUP(J24,$A$10:$J$25,9,0),"") -> 
A25: =IF(Stage1B!B45<>0,Stage1B!B45,"") ->  | C25: Yes | D25: Strong | E25: 50 | F25: 60 | G25: 55 | H25: 50 | I25: 60 | J25: 55 | K25: 0.05 | L25: 0.08 | M25: 2.3 | N25: 0.8 | O25: 600000 | P25: 4500000 | Q25: =O25/P25 -> 0.1333333333 | R25: =IF(A25="","",IFERROR(VLOOKUP(A25,Stage1B!$B$10:$J$25,8,0),"")) -> 
A26: =IF(Stage1B!B46<>0,Stage1B!B46,"") ->  | C26: No | D26: Opposition | E26: 45 | F26: 55 | G26: 50 | H26: 45 | I26: 55 | J26: 50 | K26: 0.1 | L26: 0.25 | M26: 2.5 | N26: 0.9 | O26: 700000 | P26: 5000000 | Q26: =O26/P26 -> 0.14 | R26: =IF(A26="","",IFERROR(VLOOKUP(A26,Stage1B!$B$10:$J$25,8,0),"")) -> 
A27: =IF(Stage1B!B47<>0,Stage1B!B47,"") ->  | C27: Partially | D27: Unknown | E27: 40 | F27: 50 | G27: 35 | H27: 45 | I27: 55 | J27: 40 | K27: 0.25 | L27: 0.4 | M27: 5.1 | N27: 1.2 | O27: 300000 | P27: 12000000 | Q27: 0.025 | R27: =IF(A27="","",IFERROR(VLOOKUP(A27,Stage1B!$B$10:$J$25,8,0),"")) -> 
A28: =IF(Stage1B!B48<>0,Stage1B!B48,"") ->  | C28: Yes | D28: Negative | E28: 65 | F28: 65 | G28: 50 | H28: 65 | I28: 65 | J28: 50 | K28: 0.2 | L28: 0.35 | M28: 4.7 | N28: 1 | O28: 400000 | P28: 600000 | Q28: 0.6666666667 | R28: =IF(A28="","",IFERROR(VLOOKUP(A28,Stage1B!$B$10:$J$25,8,0),"")) -> 
A29: =IF(Stage1B!B49<>0,Stage1B!B49,"") ->  | R29: =IF(A29="","",IFERROR(VLOOKUP(A29,Stage1B!$B$10:$J$25,8,0),"")) -> 
A30: =IF(Stage1B!B50<>0,Stage1B!B50,"") ->  | R30: =IF(A30="","",IFERROR(VLOOKUP(A30,Stage1B!$B$10:$J$25,8,0),"")) -> 
A31: =IF(Stage1B!B53<>0,Stage1B!B53,"") ->  | R31: =IF(A31="","",IFERROR(VLOOKUP(A31,Stage1B!$B$10:$J$25,8,0),"")) -> 
A32: =IF(Stage1B!B54<>0,Stage1B!B54,"") ->  | R32: =IF(A32="","",IFERROR(VLOOKUP(A32,Stage1B!$B$10:$J$25,8,0),"")) -> 
A33: 9. REVIEW MEETING NOTES AND RECOMMENDATIONS
A34: Recommended Intersection Concept: | D34: Multilane Roundabout
A35: Notes from review team meeting:
F53: Vehicle Delay - Intersection
A54: 2.3.1 | C54: # | E54: Form | F54: Period 1 | G54: Period 2 | I54: Period 3 | J54: Vehicle Delay - Worst Approach
C55: 6 | E55: Partial Median U-Turn | F55: 50 | G55: 60 | H55: 55 | J55: Period 1 | K55: Period 2 | L55: Period 3
C56: 5 | E56: RCUT / RCI (signalized) | F56: 45 | G56: 55 | H56: 50 | J56: 50 | K56: 60 | L56: 55
C57: 1 | E57: Traffic Signal | F57: 70 | G57: 80 | H57: 75 | J57: 45 | K57: 55 | L57: 50
J58: 70 | K58: 80 | L58: 75
F59: 20-Flag Results
A60: 2.3.2 | C60: # | E60: Form | F60: Ped | G60: Bike
C61: 6 | E61: Partial Median U-Turn | F61: 0.05 | G61: 0.08
C62: 5 | E62: RCUT / RCI (signalized) | F62: 0.1 | G62: 0.25
C63: 1 | E63: Traffic Signal | F63: 0.25 | G63: 0.4
F66: Veh. Safety
A67: 2.3.3 | C67: # | E67: Form | F67: PDO | G67: Fatal/Injury
C68: 6 | E68: Partial Median U-Turn | F68: 2.3 | G68: 0.8
C69: 5 | E69: RCUT / RCI (signalized) | F69: 2.5 | G69: 0.9
C70: 1 | E70: Traffic Signal | F70: 5.1 | G70: 1.2
A74: 2.3.4 | C74: # | E74: Form | F74: Const. Cost
C75: 6 | E75: Partial Median U-Turn | F75: 600000
C76: 5 | E76: RCUT / RCI (signalized) | F76: 700000
C77: 1 | E77: Traffic Signal | F77: 300000
F80: Life Cycle Cost
A81: 2.3.5 | C81: # | E81: Form | F81: NPV $$ | G81: B/C
C82: 6 | E82: Partial Median U-Turn | F82: 4500000 | G82: 1.2
C83: 5 | E83: RCUT / RCI (signalized) | F83: 5000000 | G83: 1.1
C84: 1 | E84: Traffic Signal | F84: 12000000 | G84: 0.5
A87: 2.3.6 | C87: # | E87: Form | F87: Compatible with Env. Features/Constraints | G87: Compatible with Context/Equity | I87: Stakeholder Outreach Results
C88: 6 | E88: Partial Median U-Turn | F88: No | G88: Yes | I88: OK
C89: 5 | E89: RCUT / RCI (signalized) | F89: Yes | G89: Yes | I89: OK
C90: 1 | E90: Traffic Signal | F90: Yes | G90: No | I90: OK
